fUST/lending_fUST_20260524
["ID","MTS","AMOUNT","RATE_DAILY","PERIOD"]
[422905176,1779600643000,-181.32,0.00014271,2]
[422905091,1779600643000,-500.0,0.00013997,2]
[422905157,1779600643000,-193.82,0.00014173,2]
[422905192,1779600643000,-1112.23890281,0.00014649,2]
[422905204,1779600643000,-5399.46,0.00014795,2]
[422905202,1779600643000,-500.0,0.00014793,2]
[422905200,1779600643000,-500.0,0.00014793,2]
[422905155,1779600643000,-501.06101857,0.00014173,2]
[422905212,1779600643000,-304.96,0.00014899,2]
[422905198,1779600643000,-500.0,0.00014793,2]
[422905215,1779600643000,-150.35653875,0.000149,2]
[422905224,1779600643000,-200.61782745,0.000149,2]
[422905221,1779600643000,-1112.23890281,0.000149,2]
[422905226,1779600643000,-200.61782744,0.000149,2]
[422905229,1779600643000,-200.61782744,0.000149,2]
[422905231,1779600643000,-2083.00807872,0.000149,2]
[422905234,1779600643000,-22519.37920408,0.00014925,4]
[422905218,1779600643000,-150.92456028,0.000149,2]
[422905196,1779600643000,-500.0,0.00014793,2]
[422905206,1779600643000,-793.0,0.000148,2]
[422905190,1779600643000,-367.79280704,0.00014447,2]
[422905194,1779600643000,-509.49294892,0.000147,2]
[422905172,1779600643000,-500.0,0.00014271,2]
[422905178,1779600643000,-500.0,0.00014271,2]
[422905153,1779600643000,-594.82630241,0.00014173,2]
[422905167,1779600643000,-886.5835052,0.00014206,2]
[422905163,1779600643000,-500.0,0.00014173,2]
[422905174,1779600643000,-500.28874629,0.00014271,2]
[422905165,1779600643000,-8139.8403422,0.00014206,2]
[422905170,1779600643000,-296.17749005,0.00014206,2]
[422905161,1779600643000,-623.43,0.00014173,2]
[422905180,1779600643000,-303.26301509,0.00014271,2]
[422905182,1779600643000,-500.0,0.00014271,2]
[422905184,1779600643000,-326.72,0.00014271,2]
[422905186,1779600643000,-172.01,0.00014271,2]
[422905188,1779600643000,-1112.23890281,0.00014399,2]
[422905159,1779600643000,-500.0,0.00014173,2]
[422905451,1779600646000,-12497.53233952,0.00014925,4]
[422905450,1779600646000,-184439.55360908,0.00014925,4]
[422905442,1779600646000,-307.708,0.000147,2]
[422905458,1779601274000,-5000.0,0.00011688,2]
[422905459,1779601327000,-4628.1457617,0.00011806,2]
[422905461,1779601380000,-5000.0,0.00011925,2]
[422905462,1779601434000,-266.07938226,0.00012106,2]
[422905463,1779601487000,-1200.0,0.00012166,2]
[422905464,1779601540000,-300.0,0.00012478,2]
[422905465,1779601594000,-300.0,0.00012478,2]
[422905467,1779601647000,-287.63458838,0.00012478,2]
[422905466,1779601647000,-300.0,0.00012477,2]
[422905510,1779601831000,-500.0,0.00012477,2]
[422905512,1779601831000,-500.0,0.00012477,2]
[422905514,1779601831000,-500.0,0.00012477,2]
[422905516,1779601831000,-1.18088182,0.00012477,2]
[422905508,1779601831000,-2338.78494095,0.00012352,2]
[422905506,1779601831000,-5000.0,0.00012228,2]
[422905519,1779601831000,-404.717955,0.00012477,2]
[422905667,1779601838000,-505.00000006,0.00013799,2]
[422905660,1779601838000,-220.567093,0.00013699,2]
[422905655,1779601838000,-5000.0,0.00013477,2]
[422905656,1779601838000,-5000.0,0.00013477,2]
[422905654,1779601838000,-5000.0,0.00013477,2]
[422905653,1779601838000,-9998.8139459,0.00012662,2]
[422905651,1779601838000,-1200.0,0.00012477,2]
[422905652,1779601838000,-15743.18443808,0.00012478,2]
[422905650,1779601838000,-300.0,0.00012477,2]
[422905661,1779601838000,-272.834161,0.00013699,2]
[422905662,1779601838000,-1000.0,0.00013699,2]
[422905664,1779601838000,-174.006,0.00013799,2]
[422905663,1779601838000,-500.87575633,0.00013799,2]
[422905672,1779601838000,-500.0,0.00013932,2]
[422905666,1779601838000,-500.0,0.00013799,2]
[422905668,1779601838000,-500.0,0.00013799,2]
[422905673,1779601838000,-300.0,0.00013972,2]
[422905669,1779601838000,-161.73758927,0.0001388,2]
[422905648,1779601838000,-500.0,0.00012477,2]
[422905665,1779601838000,-500.0,0.00013799,2]
[422905659,1779601838000,-227.0,0.0001369,2]
[422905658,1779601838000,-420.0,0.0001369,2]
[422905671,1779601838000,-189.8702946,0.00013898,2]
[422905617,1779601838000,-500.0,0.00012477,2]
[422905619,1779601838000,-500.0,0.00012477,2]
[422905615,1779601838000,-500.0,0.00012477,2]
[422905611,1779601838000,-95.282045,0.00012477,2]
[422905621,1779601838000,-500.0,0.00012477,2]
[422905613,1779601838000,-500.0,0.00012477,2]
[422905627,1779601838000,-500.0,0.00012477,2]
[422905623,1779601838000,-500.0,0.00012477,2]
[422905625,1779601838000,-500.0,0.00012477,2]
[422905641,1779601838000,-500.0,0.00012477,2]
[422905642,1779601838000,-500.0,0.00012477,2]
[422905629,1779601838000,-500.0,0.00012477,2]
[422905631,1779601838000,-500.0,0.00012477,2]
[422905633,1779601838000,-500.0,0.00012477,2]
[422905646,1779601838000,-500.0,0.00012477,2]
[422905644,1779601838000,-476.0520657,0.00012477,2]
[422905647,1779601838000,-500.0,0.00012477,2]
[422905649,1779601838000,-298.81911818,0.00012477,2]
[422905657,1779601838000,-152.0,0.00013586,7]
[422905670,1779601838000,-500.0,0.00013898,2]
[422905714,1779601838000,-166.0,0.00014925,2]
[422905685,1779601838000,-300.0,0.00013972,2]
[422905693,1779601838000,-417.69645034,0.00014224,2]
[422905701,1779601838000,-237.09263262,0.000147,2]
[422905707,1779601838000,-3191.72976468,0.00014825,4]
[422905705,1779601838000,-1211.29245646,0.00014825,4]
[422905706,1779601838000,-23307.93680511,0.00014825,4]
[422905700,1779601838000,-9526.7905175,0.00014366,2]
[422905702,1779601838000,-5039.49,0.00014795,2]
[422905703,1779601838000,-424.75496538,0.00014825,2]
[422905690,1779601838000,-328.12,0.00014,7]
[422905710,1779601838000,-424.75496535,0.00014863,2]
[422905704,1779601838000,-105096.60958313,0.00014825,4]
[422905708,1779601838000,-592148.90683595,0.00014825,4]
[422905712,1779601838000,-424.75496535,0.000149,2]
[422905713,1779601838000,-1874.70727083,0.000149,2]
[422905711,1779601838000,-424.75496535,0.00014881,2]
[422905716,1779601838000,-166.0,0.00014925,2]
[422905715,1779601838000,-166.0,0.00014925,2]
[422905717,1779601838000,-166.0,0.00014925,2]
[422905709,1779601838000,-424.75496535,0.00014844,2]
[422905697,1779601838000,-294.91,0.000143,2]
[422905675,1779601838000,-300.0,0.00013972,2]
[422905698,1779601838000,-2221.5026669,0.0001434,2]
[422905674,1779601838000,-300.0,0.00013972,2]
[422905684,1779601838000,-300.0,0.00013972,2]
[422905677,1779601838000,-300.0,0.00013972,2]
[422905676,1779601838000,-300.0,0.00013972,2]
[422905678,1779601838000,-300.0,0.00013972,2]
[422905694,1779601838000,-388.62954709,0.00014271,2]
[422905681,1779601838000,-300.0,0.00013972,2]
[422905682,1779601838000,-300.0,0.00013972,2]
[422905679,1779601838000,-300.0,0.00013972,2]
[422905686,1779601838000,-300.0,0.00013972,2]
[422905683,1779601838000,-300.0,0.00013972,2]
[422905680,1779601838000,-300.0,0.00013972,2]
[422905695,1779601838000,-1554.51818838,0.00014271,2]
[422905689,1779601838000,-500.0,0.00014,7]
[422905692,1779601838000,-600.0,0.00014174,2]
[422905691,1779601838000,-500.0,0.00014172,2]
[422905696,1779601838000,-3494.16825793,0.00014271,2]
[422905688,1779601838000,-500.0,0.00014,7]
[422905687,1779601838000,-300.0,0.00013972,2]
[422905699,1779601838000,-1355.8228106,0.00014366,2]
[422905738,1779601839000,-161.24353807,0.00014925,2]
[422905740,1779601839000,-651.0,0.00014925,2]
[422905741,1779601839000,-651.0,0.00014925,2]
[422905737,1779601839000,-156.0,0.00014925,2]
[422905743,1779601839000,-651.0,0.00014925,2]
[422905739,1779601839000,-651.0,0.00014925,2]
[422905742,1779601839000,-651.0,0.00014925,2]
[422905748,1779601839000,-651.0,0.00014925,2]
[422905757,1779601839000,-651.0,0.00014925,2]
[422905753,1779601839000,-651.0,0.00014925,2]
[422905752,1779601839000,-651.0,0.00014925,2]
[422905749,1779601839000,-651.0,0.00014925,2]
[422905751,1779601839000,-651.0,0.00014925,2]
[422905755,1779601839000,-651.0,0.00014925,2]
[422905754,1779601839000,-651.0,0.00014925,2]
[422905756,1779601839000,-651.0,0.00014925,2]
[422905758,1779601839000,-651.0,0.00014925,2]
[422905736,1779601839000,-156.0,0.00014925,2]
[422905750,1779601839000,-651.0,0.00014925,2]
[422905747,1779601839000,-651.0,0.00014925,2]
[422905735,1779601839000,-156.0,0.00014925,2]
[422905745,1779601839000,-651.0,0.00014925,2]
[422905759,1779601839000,-651.0,0.00014925,2]
[422905721,1779601839000,-166.0,0.00014925,2]
[422905722,1779601839000,-166.0,0.00014925,2]
[422905719,1779601839000,-172.0,0.00014925,2]
[422905718,1779601839000,-166.0,0.00014925,2]
[422905720,1779601839000,-166.0,0.00014925,2]
[422905724,1779601839000,-166.0,0.00014925,2]
[422905732,1779601839000,-156.0,0.00014925,2]
[422905731,1779601839000,-156.0,0.00014925,2]
[422905733,1779601839000,-156.0,0.00014925,2]
[422905734,1779601839000,-156.0,0.00014925,2]
[422905723,1779601839000,-166.0,0.00014925,2]
[422905725,1779601839000,-166.0,0.00014925,2]
[422905729,1779601839000,-156.0,0.00014925,2]
[422905730,1779601839000,-156.0,0.00014925,2]
[422905728,1779601839000,-156.0,0.00014925,2]
[422905727,1779601839000,-156.0,0.00014925,2]
[422905726,1779601839000,-172.0,0.00014925,2]
[422905744,1779601839000,-651.0,0.00014925,2]
[422905746,1779601839000,-651.0,0.00014925,2]
[422905763,1779601839000,-651.0,0.00014925,2]
[422905781,1779601839000,-651.0,0.00014925,2]
[422905765,1779601839000,-651.0,0.00014925,2]
[422905794,1779601839000,-271271.2670594,0.00015,30]
[422905764,1779601839000,-651.0,0.00014925,2]
[422905797,1779601839000,-150.98,0.00015,2]
[422905796,1779601839000,-164538.72789107,0.00015,2]
[422905785,1779601839000,-651.0,0.00014925,2]
[422905787,1779601839000,-651.0,0.00014925,2]
[422905790,1779601839000,-651.0,0.00014925,2]
[422905792,1779601839000,-50000.0,0.00014984,2]
[422905791,1779601839000,-731.4961349,0.00014925,2]
[422905789,1779601839000,-651.0,0.00014925,2]
[422905793,1779601839000,-191.21182859,0.00014999,2]
[422905799,1779601839000,-281.01403108,0.00015,2]
[422905802,1779601839000,-572.79378267,0.00015,30]
[422905805,1779601839000,-367.15066583,0.00015,2]
[422905804,1779601839000,-169.99999,0.00015,3]
[422905803,1779601839000,-207.001161,0.00015,5]
[422905801,1779601839000,-83077.57976608,0.00015,2]
[422905798,1779601839000,-27278.82914953,0.00015,2]
[422905800,1779601839000,-398.97496663,0.00015,2]
[422905795,1779601839000,-49816.29377867,0.00015,30]
[422905786,1779601839000,-651.0,0.00014925,2]
[422905788,1779601839000,-651.0,0.00014925,2]
[422905784,1779601839000,-651.0,0.00014925,2]
[422905768,1779601839000,-651.0,0.00014925,2]
[422905766,1779601839000,-651.0,0.00014925,2]
[422905769,1779601839000,-651.0,0.00014925,2]
[422905770,1779601839000,-651.0,0.00014925,2]
[422905767,1779601839000,-651.0,0.00014925,2]
[422905777,1779601839000,-651.0,0.00014925,2]
[422905760,1779601839000,-651.0,0.00014925,2]
[422905761,1779601839000,-651.0,0.00014925,2]
[422905762,1779601839000,-651.0,0.00014925,2]
[422905773,1779601839000,-651.0,0.00014925,2]
[422905771,1779601839000,-651.0,0.00014925,2]
[422905774,1779601839000,-651.0,0.00014925,2]
[422905783,1779601839000,-651.0,0.00014925,2]
[422905772,1779601839000,-651.0,0.00014925,2]
[422905780,1779601839000,-651.0,0.00014925,2]
[422905778,1779601839000,-651.0,0.00014925,2]
[422905782,1779601839000,-651.0,0.00014925,2]
[422905776,1779601839000,-651.0,0.00014925,2]
[422905779,1779601839000,-651.0,0.00014925,2]
[422905775,1779601839000,-651.0,0.00014925,2]
[422905808,1779601841000,-158.06175508,0.000147,2]
[422905809,1779601841000,-340.13405169,0.00015,2]
[422905810,1779601842000,-157.78360649,0.00015,2]
[422905822,1779601843000,-6000.0,0.00015,30]
[422905817,1779601843000,-150.46337058,0.000149,2]
[422905818,1779601843000,-417.56389744,0.00015,2]
[422905819,1779601843000,-361.0,0.00015,2]
[422905820,1779601843000,-2060.3243339,0.00015,2]
[422905821,1779601843000,-300.59718265,0.00015,2]
[422905823,1779601843000,-500.0,0.00015,2]
[422905832,1779601843000,-460.0,0.00015,5]
[422905825,1779601843000,-36660.32530945,0.00015,2]
[422905831,1779601843000,-315491.04995287,0.00015,2]
[422905829,1779601843000,-4479.15198489,0.00015,2]
[422905833,1779601843000,-92405.46047131,0.00015,2]
[422905824,1779601843000,-884.53772144,0.00015,2]
[422905827,1779601843000,-2687.75258541,0.00015,2]
[422905826,1779601843000,-3197.03465272,0.00015,2]
[422905830,1779601843000,-31923.24540239,0.00015,2]
[422905852,1779601846000,-158.06175508,0.000147,2]
[422905854,1779601846000,-13767.36718986,0.00015,2]
[422905853,1779601846000,-5000.0,0.00014751,2]
[422905858,1779602008000,-300.0,0.00012351,2]
[422905859,1779602062000,-161.73758927,0.00012352,2]
[422905860,1779602107000,-161.73758927,0.00012352,2]
[422905861,1779602160000,-650.0,0.00012474,2]
[422905862,1779602214000,-185.58313279,0.00012474,2]
[422905863,1779602267000,-1211.29245646,0.00012349,2]
[422905864,1779602287000,-3788.70754354,0.00012349,2]
[422905865,1779602341000,-502.37656825,0.00012473,2]
[422905866,1779602394000,-500.0,0.00012473,2]
[422905867,1779602472000,-151.0,0.00011979,2]
[422905868,1779602490000,-275.74494556,0.00012349,2]
[422905869,1779602506000,-151.0,0.00012349,2]
[422905870,1779602523000,-275.74494556,5.921e-05,2]
[422905871,1779602540000,-37.48072564,5.921e-05,2]
[422905872,1779602557000,-389.26421992,0.00012349,2]
[422905873,1779602585000,-151.0,6.5e-05,2]
[422905874,1779602638000,-300.0,0.00012348,2]
[422905875,1779602691000,-500.0,0.00011875,2]
[422905876,1779602744000,-300.0,0.00011874,2]
[422905878,1779602798000,-384.76808575,0.00011276,2]
[422905879,1779602818000,-117.58189665,0.00011276,2]
[422905880,1779602872000,-321.0171196,0.00011575,2]
[422905881,1779602925000,-300.0,0.00011871,2]
[422905883,1779602978000,-300.0,0.0001187,2]
[422905932,1779603032000,-300.0,0.00011869,2]
[422905952,1779603032000,-1200.0,0.00011869,2]
[422905956,1779603032000,-2719.4386483,0.0001187,2]
[422905958,1779603032000,-687.75679789,0.0001187,2]
[422905959,1779603032000,-679.23543468,0.0001187,2]
[422905954,1779603032000,-8642.97054,0.0001187,2]
[422905973,1779603040000,-500.0,0.00011869,2]
[422905972,1779603040000,-500.0,0.00011869,2]
[422905971,1779603040000,-500.0,0.00011869,2]
[422905974,1779603040000,-377.41967901,0.00011869,2]
[422905981,1779603040000,-500.0,0.00011869,2]
[422905978,1779603040000,-500.0,0.00011869,2]
[422905979,1779603040000,-123.7893889,0.00011869,2]
[422905977,1779603040000,-102.45173401,0.00011869,2]
[422905980,1779603040000,-376.2106111,0.00011869,2]
[422905982,1779603040000,-470.23127158,0.00011869,2]
[422905976,1779603040000,-397.54826599,0.00011869,2]
[422905975,1779603040000,-500.0,0.00011869,2]
[422906111,1779603042000,-500.0,0.00011869,2]
[422906100,1779603042000,-500.0,0.00011869,2]
[422906106,1779603042000,-500.0,0.00011869,2]
[422906102,1779603042000,-500.0,0.00011869,2]
[422906109,1779603042000,-500.0,0.00011869,2]
[422906108,1779603042000,-500.0,0.00011869,2]
[422906086,1779603042000,-481.42432369,0.00011869,2]
[422906125,1779603042000,-500.0,0.00011869,2]
[422906115,1779603042000,-500.0,0.00011869,2]
[422906138,1779603042000,-2183.874358,0.00012335,2]
[422906131,1779603042000,-37270.59857913,0.0001187,2]
[422906094,1779603042000,-500.0,0.00011869,2]
[422906098,1779603042000,-500.0,0.00011869,2]
[422906088,1779603042000,-500.0,0.00011869,2]
[422906133,1779603042000,-73598.621264,0.00011876,2]
[422906104,1779603042000,-500.0,0.00011869,2]
[422906092,1779603042000,-500.0,0.00011869,2]
[422906090,1779603042000,-500.0,0.00011869,2]
[422906082,1779603042000,-500.0,0.00011869,2]
[422906078,1779603042000,-500.0,0.00011869,2]
[422906077,1779603042000,-500.0,0.00011869,2]
[422906080,1779603042000,-500.0,0.00011869,2]
[422906084,1779603042000,-18.57567631,0.00011869,2]
[422906076,1779603042000,-500.0,0.00011869,2]
[422906072,1779603042000,-29.76872842,0.00011869,2]
[422906074,1779603042000,-289.39362624,0.00011869,2]
[422906075,1779603042000,-500.0,0.00011869,2]
[422906096,1779603042000,-500.0,0.00011869,2]
[422906129,1779603042000,-519.49506112,0.00011869,2]
[422906165,1779603042000,-300.0,0.00012721,2]
[422906127,1779603042000,-500.0,0.00011869,2]
[422906186,1779603042000,-339.80397228,0.00012901,2]
[422906188,1779603042000,-240.0,0.00013031,2]
[422906163,1779603042000,-300.0,0.00012721,2]
[422906179,1779603042000,-300.0,0.00012721,2]
[422906185,1779603042000,-2183.874358,0.00012854,2]
[422906113,1779603042000,-500.0,0.00011869,2]
[422906181,1779603042000,-600.0,0.00012721,2]
[422906177,1779603042000,-300.0,0.00012721,2]
[422906173,1779603042000,-300.0,0.00012721,2]
[422906183,1779603042000,-443.9354276,0.00012739,2]
[422906167,1779603042000,-300.0,0.00012721,2]
[422906169,1779603042000,-300.0,0.00012721,2]
[422906171,1779603042000,-300.0,0.00012721,2]
[422906153,1779603042000,-300.0,0.00012721,2]
[422906175,1779603042000,-300.0,0.00012721,2]
[422906145,1779603042000,-500.0,0.00012479,2]
[422906157,1779603042000,-300.0,0.00012721,2]
[422906136,1779603042000,-339.80397228,0.00012235,2]
[422906121,1779603042000,-500.0,0.00011869,2]
[422906119,1779603042000,-500.0,0.00011869,2]
[422906123,1779603042000,-500.0,0.00011869,2]
[422906143,1779603042000,-161.73758927,0.00012474,2]
[422906117,1779603042000,-500.0,0.00011869,2]
[422906149,1779603042000,-300.0,0.00012721,2]
[422906151,1779603042000,-300.0,0.00012721,2]
[422906147,1779603042000,-300.0,0.00012721,2]
[422906141,1779603042000,-2261.00480217,0.00012349,2]
[422906140,1779603042000,-5000.0,0.00012349,2]
[422906155,1779603042000,-300.0,0.00012721,2]
[422906199,1779603043000,-1000.0,0.00013699,2]
[422906222,1779603043000,-160.0,0.00014742,4]
[422906215,1779603043000,-339.80397228,0.00014234,2]
[422906214,1779603043000,-720.0,0.00013993,2]
[422906223,1779603043000,-1808.57629928,0.000148,2]
[422906217,1779603043000,-500.0,0.00014249,2]
[422906206,1779603043000,-326.0126879,0.00013807,2]
[422906196,1779603043000,-2183.874358,0.00013373,2]
[422906202,1779603043000,-272.834162,0.00013699,2]
[422906197,1779603043000,-339.80397228,0.00013568,2]
[422906207,1779603043000,-152.0,0.00013857,7]
[422906211,1779603043000,-2183.874358,0.00013892,2]
[422906213,1779603043000,-170.756,0.000139,2]
[422906209,1779603043000,-152.0,0.00013876,7]
[422906204,1779603043000,-185.0,0.00013729,2]
[422906216,1779603043000,-160.0,0.00014238,3]
[422906193,1779603043000,-1680.0,0.00013056,2]
[422906219,1779603043000,-2183.874358,0.00014412,2]
[422906244,1779603043000,-1278.0,0.00015,2]
[422906224,1779603043000,-15974.97239413,0.000148,2]
[422906218,1779603043000,-2351.0,0.00014361,2]
[422906245,1779603043000,-102846.83811278,0.00015,2]
[422906243,1779603043000,-1032.58905895,0.00015,2]
[422906240,1779603043000,-500.0,0.00012473,2]
[422906241,1779603043000,-3178.4336492,0.00015,2]
[422906233,1779603043000,-207.76850927,0.0001495,2]
[422906230,1779603043000,-2183.874358,0.00014931,2]
[422906235,1779603043000,-18905.21506454,0.00015,2]
[422906242,1779603043000,-185611.69576593,0.00015,2]
[422906236,1779603043000,-10351.29328183,0.00015,2]
[422906234,1779603043000,-250.7813402,0.00014996,2]
[422906228,1779603043000,-1211.29245646,0.00014925,4]
[422906231,1779603043000,-2600.0252646,0.00014946,2]
[422906221,1779603043000,-158.06175508,0.000147,2]
[422906220,1779603043000,-326.0126879,0.00014629,2]
[422906225,1779603043000,-225.69505587,0.000149,2]
[422906226,1779603043000,-339.80397228,0.000149,2]
[422906237,1779603043000,-4620.18080527,0.00015,2]
[422906254,1779603046000,-330.59113692,0.00015,2]
[422906253,1779603046000,-358.33291026,0.00011871,2]
[422906252,1779603046000,-120.66708974,0.00011871,2]
[422906251,1779603046000,-500.0,0.00011871,2]
[422906306,1779604232000,-167.91836485,0.0001113,2]
[422906310,1779604232000,-538.94250072,0.00011185,2]
[422906308,1779604232000,-232.18492951,0.00011185,2]
[422906304,1779604232000,-152.0,0.0001113,2]
[422906302,1779604232000,-5000.0,0.00010963,2]
[422906901,1779604243000,-300.0,0.00011868,2]
[422906899,1779604243000,-428.87256977,0.00011185,2]
[422906898,1779604243000,-5000.0,0.00011073,2]
[422906900,1779604243000,-3917.6436165,0.00011186,2]
[422906903,1779604243000,-300.0,0.00011868,2]
[422906902,1779604243000,-300.0,0.00011868,2]
[422906906,1779604243000,-500.0,0.00012279,2]
[422906904,1779604243000,-500.0,0.00012279,2]
[422906905,1779604243000,-500.0,0.00012279,2]
[422906907,1779604243000,-500.0,0.00012279,2]
[422906908,1779604243000,-500.0,0.00012279,2]
[422906909,1779604243000,-201.94950611,0.00012279,2]
[422906910,1779604243000,-500.0,0.00012279,2]
[422906953,1779604244000,-500.0,0.00012471,2]
[422906954,1779604244000,-500.0,0.00012471,2]
[422906952,1779604244000,-500.0,0.00012471,2]
[422906956,1779604244000,-510.86593597,0.00012471,2]
[422906955,1779604244000,-500.0,0.00012471,2]
[422906951,1779604244000,-500.0,0.00012471,2]
[422906957,1779604244000,-500.0,0.00012471,2]
[422906949,1779604244000,-500.0,0.00012471,2]
[422906947,1779604244000,-500.0,0.00012471,2]
[422906948,1779604244000,-500.20385964,0.00012471,2]
[422906943,1779604244000,-1680.0,0.00012303,2]
[422906942,1779604244000,-500.0,0.0001228,2]
[422906950,1779604244000,-500.0,0.00012471,2]
[422906959,1779604244000,-500.0,0.00012471,2]
[422906966,1779604244000,-500.0,0.00012471,2]
[422906958,1779604244000,-500.0,0.00012471,2]
[422906962,1779604244000,-500.34425727,0.00012471,2]
[422906967,1779604244000,-500.0,0.00012471,2]
[422906963,1779604244000,-500.0,0.00012471,2]
[422906961,1779604244000,-500.0,0.00012471,2]
[422906969,1779604244000,-500.0,0.00012471,2]
[422906965,1779604244000,-500.0,0.00012471,2]
[422906968,1779604244000,-500.0,0.00012471,2]
[422906971,1779604244000,-500.0,0.00012471,2]
[422906981,1779604244000,-500.0,0.00012471,2]
[422906982,1779604244000,-539.33979203,0.00012471,2]
[422906983,1779604244000,-500.0,0.00012471,2]
[422906939,1779604244000,-500.0,0.0001228,2]
[422906960,1779604244000,-500.0,0.00012471,2]
[422906933,1779604244000,-500.0,0.0001228,2]
[422906921,1779604244000,-500.0,0.0001228,2]
[422906937,1779604244000,-500.0,0.0001228,2]
[422906916,1779604244000,-500.0,0.0001228,2]
[422906918,1779604244000,-500.0,0.0001228,2]
[422906917,1779604244000,-500.0,0.0001228,2]
[422906913,1779604244000,-500.0,0.00012279,2]
[422906911,1779604244000,-502.37656825,0.00012279,2]
[422906912,1779604244000,-185.58313279,0.00012279,2]
[422906915,1779604244000,-500.0,0.0001228,2]
[422906914,1779604244000,-254.37706958,0.00012279,2]
[422906920,1779604244000,-445.0,0.0001228,2]
[422906930,1779604244000,-507.12,0.0001228,2]
[422906927,1779604244000,-500.0,0.0001228,2]
[422906923,1779604244000,-500.51875377,0.0001228,2]
[422906970,1779604244000,-500.0,0.00012471,2]
[422906919,1779604244000,-500.0,0.0001228,2]
[422906935,1779604244000,-500.0,0.0001228,2]
[422906925,1779604244000,-500.0,0.0001228,2]
[422906924,1779604244000,-500.0,0.0001228,2]
[422906926,1779604244000,-500.60166429,0.0001228,2]
[422906932,1779604244000,-500.0,0.0001228,2]
[422906931,1779604244000,-500.0,0.0001228,2]
[422906928,1779604244000,-500.0,0.0001228,2]
[422906929,1779604244000,-500.0,0.0001228,2]
[422906934,1779604244000,-204.73,0.0001228,2]
[422906944,1779604244000,-161.73758927,0.0001233,2]
[422906936,1779604244000,-599.52,0.0001228,2]
[422906945,1779604244000,-50000.0,0.00012465,2]
[422906946,1779604244000,-384.76808575,0.00012471,2]
[422906938,1779604244000,-165.73,0.0001228,2]
[422906940,1779604244000,-500.0,0.0001228,2]
[422906941,1779604244000,-500.0,0.0001228,2]
[422906922,1779604244000,-500.0,0.0001228,2]
[422906980,1779604244000,-500.12252924,0.00012471,2]
[422906964,1779604244000,-500.0,0.00012471,2]
[422906972,1779604244000,-500.0,0.00012471,2]
[422907012,1779604244000,-490.81482499,0.00012471,2]
[422907011,1779604244000,-500.0,0.00012471,2]
[422907021,1779604244000,-500.0,0.00012471,2]
[422907018,1779604244000,-495.0,0.00012471,2]
[422907014,1779604244000,-500.0,0.00012471,2]
[422907016,1779604244000,-500.0,0.00012471,2]
[422907015,1779604244000,-500.0,0.00012471,2]
[422907017,1779604244000,-500.0,0.00012471,2]
[422907020,1779604244000,-500.0,0.00012471,2]
[422907013,1779604244000,-500.0,0.00012471,2]
[422907019,1779604244000,-500.0,0.00012471,2]
[422907024,1779604244000,-500.0,0.00012471,2]
[422907023,1779604244000,-500.0,0.00012471,2]
[422907026,1779604244000,-500.0,0.00012471,2]
[422907022,1779604244000,-500.0,0.00012471,2]
[422907038,1779604244000,-411.20413488,0.00012471,2]
[422907037,1779604244000,-500.0,0.00012471,2]
[422907025,1779604244000,-500.0,0.00012471,2]
[422907029,1779604244000,-500.20923546,0.00012471,2]